fUST/lending_fUST_20240525
["ID","MTS","AMOUNT","RATE_DAILY","PERIOD"]
[327875833,1716573042849,-500.0,0.00024931,3]
[327875834,1716573042858,-675.81,0.00024931,3]
[327875835,1716573042867,-500.0,0.00024931,3]
[327875836,1716573042876,-440.73,0.00024931,3]
[327875837,1716573042885,-500.0,0.00024931,3]
[327875838,1716573042896,-500.0,0.00024931,3]
[327875839,1716573042905,-500.0,0.00024931,3]
[327875840,1716573042914,-500.0,0.00024931,3]
[327875841,1716573042924,-500.0,0.00024931,3]
[327875842,1716573042933,-845.77,0.00024931,3]
[327875843,1716573042942,-500.0,0.00024931,3]
[327875844,1716573042951,-500.0,0.00024931,3]
[327875845,1716573042960,-500.0,0.00024931,3]
[327875846,1716573042970,-500.0,0.00024931,3]
[327875847,1716573042979,-500.0,0.00024931,3]
[327875848,1716573042989,-587.45,0.00024931,3]
[327875849,1716573042997,-500.0,0.00024931,3]
[327875850,1716573043006,-500.0,0.00024931,3]
[327875851,1716573043015,-500.0,0.00024931,3]
[327875852,1716573043024,-3455.13,0.00024931,3]
[327875853,1716573043033,-500.0,0.00024931,3]
[327875854,1716573043043,-500.0,0.00024931,3]
[327875855,1716573043052,-891.23,0.00024931,3]
[327875856,1716573043062,-500.0,0.00024931,3]
[327875858,1716573043070,-500.0,0.00024931,3]
[327875859,1716573043079,-500.0,0.00024931,3]
[327875860,1716573043088,-500.0,0.00024931,3]
[327875861,1716573043097,-500.0,0.00024931,3]
[327875862,1716573043106,-500.0,0.00024931,3]
[327875863,1716573043115,-500.0,0.00024931,3]
[327875866,1716573043123,-1415.81,0.00024931,3]
[327875869,1716573043133,-4831.14,0.00024931,3]
[327875872,1716573043142,-737.37,0.00024931,3]
[327875875,1716573043151,-500.0,0.00024931,3]
[327875877,1716573043160,-675.84,0.00024931,3]
[327875879,1716573043169,-500.0,0.00024931,3]
[327875881,1716573043178,-619.39,0.00024931,3]
[327875883,1716573043187,-696.11,0.00024931,3]
[327875884,1716573043196,-500.0,0.00024931,3]
[327875885,1716573043205,-500.0,0.00024931,3]
[327875886,1716573043215,-1765.24,0.00024931,3]
[327875887,1716573043225,-500.0,0.00024931,3]
[327875889,1716573043235,-558.88,0.00024931,3]
[327875890,1716573043244,-500.0,0.00024931,3]
[327875891,1716573043253,-532.28,0.00024931,3]
[327875892,1716573043262,-777.93,0.00024931,3]
[327875893,1716573043271,-500.0,0.00024931,3]
[327875894,1716573043281,-500.0,0.00024931,3]
[327875895,1716573043290,-500.0,0.00024931,3]
[327875896,1716573043299,-617.46,0.00024931,3]
[327875897,1716573043308,-5617.02,0.00024931,3]
[327875898,1716573043318,-500.0,0.00024931,3]
[327875899,1716573043327,-1118.82,0.00024931,3]
[327875900,1716573043336,-6010.23,0.00024931,3]
[327875901,1716573043345,-1742.08,0.00024931,3]
[327875902,1716573043354,-500.0,0.00024931,3]
[327875903,1716573043363,-500.0,0.00024931,3]
[327875904,1716573043373,-500.0,0.00024931,3]
[327875905,1716573043382,-500.0,0.00024931,3]
[327875906,1716573043390,-544.45,0.00024931,3]
[327875907,1716573043399,-500.0,0.00024931,3]
[327875908,1716573043408,-500.0,0.00024931,3]
[327875909,1716573043421,-500.0,0.00024931,3]
[327875910,1716573043430,-500.0,0.00024931,3]
[327875911,1716573043439,-500.0,0.00024931,3]
[327875912,1716573043450,-500.0,0.00024931,3]
[327875913,1716573043462,-500.0,0.00024931,3]
[327875914,1716573043471,-500.0,0.00024931,3]
[327875915,1716573043480,-500.0,0.00024931,3]
[327875916,1716573043491,-500.0,0.00024931,3]
[327875917,1716573043501,-500.0,0.00024931,3]
[327875918,1716573043511,-548.94,0.00024931,3]
[327875919,1716573043520,-529.82,0.00024931,3]
[327875920,1716573043530,-8781.26,0.00024999,13]
[327875921,1716573043539,-500.0,0.00024999,3]
[327875922,1716573043548,-401.04849883,0.00025,2]
[327875923,1716573043557,-10772.1518586,0.00025,2]
[327875924,1716573043567,-494.71433164,0.00025,2]
[327875925,1716573043576,-25684.44242429,0.00025,2]
[327875926,1716573043585,-154.82968734,0.00025,14]
[327875927,1716573043594,-994.69453636,0.00025158,2]
[327875928,1716573043602,-8781.26,0.00025204,14]
[327875929,1716573043613,-500.0,0.00025204,3]
[327875930,1716573043623,-500.0,0.00025205,4]
[327875931,1716573043634,-619.7,0.00025205,4]
[327875932,1716573043644,-500.0,0.00025205,4]
[327875933,1716573043654,-500.0,0.00025205,4]
[327875934,1716573043663,-500.0,0.00025205,4]
[327875935,1716573043672,-500.0,0.00025205,4]
[327875936,1716573043681,-500.0,0.00025205,4]
[327875937,1716573043690,-378.2677005,0.00025205,2]
[327875938,1716573043699,-500.0,0.00025205,4]
[327875939,1716573043709,-500.0,0.00025205,4]
[327875940,1716573043719,-500.0,0.00025205,4]
[327875941,1716573043728,-500.0,0.00025205,4]
[327875942,1716573043739,-500.0,0.00025205,4]
[327875943,1716573043748,-500.0,0.00025205,4]
[327875944,1716573043758,-500.0,0.00025205,4]
[327875945,1716573043767,-500.0,0.00025205,4]
[327875946,1716573043776,-597.87,0.00025205,4]
[327875947,1716573043785,-500.0,0.00025205,4]
[327875948,1716573043795,-500.0,0.00025205,4]
[327875949,1716573043804,-754.5,0.00025205,4]
[327875950,1716573043813,-500.0,0.00025205,4]
[327875951,1716573043822,-500.0,0.00025205,4]
[327875952,1716573043832,-500.0,0.00025205,4]
[327875953,1716573043840,-714.32,0.00025205,4]
[327875954,1716573043850,-369.07192742,0.00025205,4]
[327875955,1716573043859,-500.0,0.00025205,4]
[327875956,1716573043869,-500.0,0.00025205,4]
[327875957,1716573043879,-500.0,0.00025205,4]
[327875958,1716573043888,-500.0,0.00025205,4]
[327875959,1716573043897,-675.81,0.00025205,4]
[327875960,1716573043906,-500.0,0.00025205,4]
[327875961,1716573043916,-500.0,0.00025205,4]
[327875962,1716573043925,-500.0,0.00025205,4]
[327875963,1716573043934,-500.0,0.00025205,4]
[327875964,1716573043944,-500.0,0.00025205,4]
[327875965,1716573043953,-500.0,0.00025205,4]
[327875966,1716573043963,-845.77,0.00025205,4]
[327875967,1716573043972,-500.0,0.00025205,4]
[327875968,1716573043982,-500.0,0.00025205,4]
[327875969,1716573043992,-500.0,0.00025205,4]
[327875970,1716573044001,-587.45,0.00025205,4]
[327875971,1716573044010,-500.0,0.00025205,4]
[327875972,1716573044021,-500.0,0.00025205,4]
[327875973,1716573044031,-3455.13,0.00025205,4]
[327875974,1716573044041,-500.0,0.00025205,4]
[327875975,1716573044050,-500.0,0.00025205,4]
[327875976,1716573044061,-891.23,0.00025205,4]
[327875977,1716573044071,-500.0,0.00025205,4]
[327875978,1716573044080,-500.0,0.00025205,4]
[327875979,1716573044091,-500.0,0.00025205,4]
[327875980,1716573044101,-500.0,0.00025205,4]
[327875981,1716573044111,-500.0,0.00025205,4]
[327875982,1716573044122,-500.0,0.00025205,4]
[327875983,1716573044132,-500.0,0.00025205,4]
[327875984,1716573044142,-1415.81,0.00025205,4]
[327875985,1716573044151,-4831.14,0.00025205,4]
[327875986,1716573044160,-737.37,0.00025205,4]
[327875987,1716573044170,-500.0,0.00025205,4]
[327875988,1716573044180,-675.84,0.00025205,4]
[327875989,1716573044190,-500.0,0.00025205,4]
[327875990,1716573044199,-619.39,0.00025205,4]
[327875991,1716573044209,-696.11,0.00025205,4]
[327875992,1716573044219,-500.0,0.00025205,4]
[327875993,1716573044228,-500.0,0.00025205,4]
[327875994,1716573044237,-1765.24,0.00025205,4]
[327875995,1716573044246,-500.0,0.00025205,4]
[327875996,1716573044256,-558.88,0.00025205,4]
[327875997,1716573044265,-532.28,0.00025205,4]
[327875998,1716573044275,-777.93,0.00025205,4]
[327875999,1716573044285,-500.0,0.00025205,4]
[327876000,1716573044295,-500.0,0.00025205,4]
[327876001,1716573044305,-617.46,0.00025205,4]
[327876002,1716573044315,-5617.02,0.00025205,4]
[327876003,1716573044325,-500.0,0.00025205,4]
[327876004,1716573044335,-1118.82,0.00025205,4]
[327876005,1716573044344,-6010.23,0.00025205,4]
[327876006,1716573044353,-1742.08,0.00025205,4]
[327876007,1716573044362,-500.0,0.00025205,4]
[327876008,1716573044372,-500.0,0.00025205,4]
[327876010,1716573044382,-500.0,0.00025205,4]
[327876012,1716573044392,-544.45,0.00025205,4]
[327876013,1716573044401,-500.0,0.00025205,4]
[327876015,1716573044411,-500.0,0.00025205,4]
[327876017,1716573044426,-500.0,0.00025205,4]
[327876019,1716573044436,-500.0,0.00025205,4]
[327876021,1716573044446,-500.0,0.00025205,4]
[327876023,1716573044457,-247.76554986,0.00025205,4]
[327876025,1716573044467,-500.0,0.00025205,4]
[327876027,1716573044477,-500.0,0.00025205,4]
[327876029,1716573044488,-500.0,0.00025205,4]
[327876031,1716573044500,-500.0,0.00025205,4]
[327876033,1716573044510,-548.94,0.00025205,4]
[327876035,1716573044520,-529.82,0.00025205,4]
[327876037,1716573044530,-150.81901718,0.00025212,7]
[327876039,1716573044539,-151.0,0.00025381,5]
[327876041,1716573044549,-8781.26,0.00025476,15]
[327876043,1716573044560,-7341.15827618,0.00025477,2]
[327876044,1716573044569,-8781.26,0.00025478,16]
[327876046,1716573044579,-500.0,0.00025478,3]
[327876048,1716573044589,-500.0,0.00025479,5]
[327876050,1716573044599,-619.7,0.00025479,5]
[327876052,1716573044609,-292.59626494,0.00025479,5]
[327876053,1716573044619,-500.0,0.00025479,5]
[327876055,1716573044628,-500.0,0.00025479,5]
[327876057,1716573044638,-500.0,0.00025479,5]
[327876059,1716573044648,-500.0,0.00025479,5]
[327876060,1716573044658,-194.88120767,0.00025479,5]
[327876062,1716573044668,-500.0,0.00025479,5]
[327876063,1716573044679,-500.0,0.00025479,5]
[327876065,1716573044689,-500.0,0.00025479,5]
[327876067,1716573044700,-500.0,0.00025479,5]
[327876069,1716573044710,-500.0,0.00025479,5]
[327876071,1716573044721,-597.87,0.00025479,5]
[327876072,1716573044732,-500.0,0.00025479,5]
[327876074,1716573044744,-500.0,0.00025479,5]
[327876076,1716573044755,-754.5,0.00025479,5]
[327876078,1716573044764,-500.0,0.00025479,5]
[327876080,1716573044774,-500.0,0.00025479,5]
[327876082,1716573044784,-500.0,0.00025479,5]
[327876083,1716573044794,-714.32,0.00025479,5]
[327876085,1716573044804,-500.0,0.00025479,5]
[327876088,1716573044814,-500.0,0.00025479,5]
[327876090,1716573044825,-500.0,0.00025479,5]
[327876092,1716573044835,-500.0,0.00025479,5]
[327876093,1716573044845,-675.81,0.00025479,5]
[327876095,1716573044855,-500.0,0.00025479,5]
[327876097,1716573044864,-500.0,0.00025479,5]
[327876099,1716573044874,-500.0,0.00025479,5]
[327876101,1716573044884,-500.0,0.00025479,5]
[327876103,1716573044894,-500.0,0.00025479,5]
[327876105,1716573044904,-845.77,0.00025479,5]
[327876107,1716573044914,-500.0,0.00025479,5]
[327876109,1716573044923,-151.0,0.00025479,2]
[327876111,1716573044933,-151.0,0.00025479,2]
[327876113,1716573044943,-151.0,0.00025479,2]
[327876115,1716573044954,-500.0,0.00025479,5]
[327876117,1716573044964,-151.0,0.00025479,2]
[327876119,1716573044973,-151.0,0.00025479,2]
[327876121,1716573044982,-151.0,0.00025479,2]
[327876123,1716573044994,-151.0,0.00025479,2]
[327876125,1716573045004,-151.0,0.00025479,2]
[327876126,1716573045014,-587.45,0.00025479,5]
[327876128,1716573045025,-500.0,0.00025479,5]
[327876130,1716573045034,-500.0,0.00025479,5]
[327876132,1716573045044,-237.351224,0.00025479,2]
[327876134,1716573045053,-3455.13,0.00025479,5]
[327876136,1716573045062,-500.0,0.00025479,5]
[327876138,1716573045071,-500.0,0.00025479,5]
[327876140,1716573045081,-303.386439,0.00025479,2]
[327876141,1716573045090,-891.23,0.00025479,5]
[327876142,1716573045099,-303.386439,0.00025479,2]
[327876143,1716573045108,-500.0,0.00025479,5]
[327876144,1716573045117,-500.0,0.00025479,5]
[327876145,1716573045127,-500.0,0.00025479,5]
[327876146,1716573045136,-500.0,0.00025479,5]
[327876147,1716573045145,-500.0,0.00025479,5]
[327876148,1716573045155,-151.0,0.00025479,2]
[327876149,1716573045165,-151.0,0.00025479,2]
[327876150,1716573045174,-500.0,0.00025479,5]
[327876151,1716573045183,-500.0,0.00025479,5]
[327876152,1716573045192,-151.0,0.00025479,2]
[327876153,1716573045201,-1415.81,0.00025479,5]
[327876154,1716573045210,-4831.14,0.00025479,5]
[327876155,1716573045219,-737.37,0.00025479,5]
[327876156,1716573045228,-500.0,0.00025479,5]
[327876157,1716573045238,-675.84,0.00025479,5]
[327876158,1716573045247,-500.0,0.00025479,5]
[327876159,1716573045256,-619.39,0.00025479,5]
[327876160,1716573045265,-245.085537,0.00025479,2]
[327876161,1716573045275,-696.11,0.00025479,5]
[327876162,1716573045284,-245.085537,0.00025479,2]
[327876163,1716573045294,-500.0,0.00025479,5]
[327876164,1716573045303,-500.0,0.00025479,5]
[327876166,1716573045312,-1765.24,0.00025479,5]
[327876168,1716573045321,-500.0,0.00025479,5]
[327876170,1716573045330,-558.88,0.00025479,5]
[327876172,1716573045340,-532.28,0.00025479,5]
[327876174,1716573045349,-777.93,0.00025479,5]
[327876176,1716573045359,-500.0,0.00025479,5]
[327876178,1716573045368,-500.0,0.00025479,5]
[327876180,1716573045377,-151.0,0.00025479,2]
[327876182,1716573045387,-151.0,0.00025479,2]
[327876184,1716573045396,-617.46,0.00025479,5]
[327876186,1716573045405,-5617.02,0.00025479,5]
[327876188,1716573045422,-751.740491,0.00025479,2]
[327876190,1716573045431,-500.0,0.00025479,5]
[327876192,1716573045441,-153.405585,0.00025479,2]
[327876194,1716573045450,-1118.82,0.00025479,5]
[327876195,1716573045462,-751.740491,0.00025479,2]
[327876197,1716573045471,-151.0,0.00025479,2]
[327876199,1716573045481,-6010.23,0.00025479,5]
[327876202,1716573045494,-1742.08,0.00025479,5]
[327876203,1716573045504,-500.0,0.00025479,5]
[327876206,1716573045514,-500.0,0.00025479,5]
[327876208,1716573045523,-243.4891551,0.00025479,5]
[327876210,1716573045532,-544.45,0.00025479,5]
[327876212,1716573045542,-500.0,0.00025479,5]
[327876214,1716573045551,-500.0,0.00025479,5]
[327876215,1716573045561,-500.0,0.00025479,5]
[327876217,1716573045570,-676.570388,0.00025479,2]
[327876219,1716573045580,-500.0,0.00025479,5]
[327876222,1716573045590,-676.570388,0.00025479,2]
[327876224,1716573045599,-151.0,0.00025479,2]
[327876225,1716573045608,-500.0,0.00025479,5]
[327876228,1716573045618,-500.0,0.00025479,5]
[327876230,1716573045628,-500.0,0.00025479,5]
[327876231,1716573045637,-500.0,0.00025479,5]
[327876234,1716573045647,-500.0,0.00025479,5]
[327876236,1716573045658,-548.94,0.00025479,5]
[327876238,1716573045668,-529.82,0.00025479,5]
[327876240,1716573045677,-388.620509,0.00025575,2]
[327876242,1716573045686,-150.81901718,0.00025726,4]
[327876244,1716573045696,-269.465102,0.00025751,2]
[327876246,1716573045707,-269.465102,0.00025751,2]
[327876248,1716573045716,-151.0,0.00025751,2]
[327876250,1716573045725,-151.0,0.00025751,2]
[327876252,1716573045734,-151.0,0.00025751,2]
[327876254,1716573045745,-151.0,0.00025751,2]
[327876256,1716573045754,-151.0,0.00025751,2]
[327876257,1716573045763,-151.0,0.00025751,2]
[327876260,1716573045773,-151.0,0.00025751,2]
[327876262,1716573045783,-151.0,0.00025751,2]
[327876264,1716573045792,-500.0,0.00025751,3]
[327876266,1716573045801,-8781.26,0.00025752,17]
[327876267,1716573045810,-500.0,0.00025752,3]
[327876270,1716573045820,-500.0,0.00025753,6]
[327876272,1716573045830,-619.7,0.00025753,6]
[327876273,1716573045839,-500.0,0.00025753,6]
[327876275,1716573045848,-500.0,0.00025753,6]
[327876277,1716573045857,-500.0,0.00025753,6]
[327876292,1716573045986,-617.73,0.00025753,6]
[327876294,1716573045997,-500.0,0.00025753,6]
[327876296,1716573046006,-500.0,0.00025753,6]
[327876298,1716573046015,-500.0,0.00025753,6]
[327876300,1716573046026,-500.0,0.00025753,6]
[327876302,1716573046035,-500.0,0.00025753,6]
[327876305,1716573046044,-597.87,0.00025753,6]
[327876306,1716573046054,-500.0,0.00025753,6]
[327876308,1716573046063,-500.0,0.00025753,6]
[327876310,1716573046072,-754.5,0.00025753,6]
[327876312,1716573046081,-500.0,0.00025753,6]
[327876314,1716573046091,-500.0,0.00025753,6]
[327876316,1716573046100,-714.32,0.00025753,6]
[327876319,1716573046110,-500.0,0.00025753,6]
[327876321,1716573046120,-500.0,0.00025753,6]
[327876323,1716573046130,-500.0,0.00025753,6]
[327876327,1716573046139,-500.0,0.00025753,6]
[327876330,1716573046150,-675.81,0.00025753,6]
[327876334,1716573046159,-500.0,0.00025753,6]
[327876337,1716573046169,-380.0,0.00025753,6]
[327876339,1716573046178,-500.0,0.00025753,6]
[327876341,1716573046187,-500.0,0.00025753,6]
[327876344,1716573046197,-500.0,0.00025753,6]
[327876347,1716573046206,-845.77,0.00025753,6]
[327876350,1716573046215,-500.0,0.00025753,6]
[327876353,1716573046223,-587.45,0.00025753,6]
[327876356,1716573046233,-500.0,0.00025753,6]
[327876359,1716573046244,-3455.13,0.00025753,6]
[327876361,1716573046253,-500.0,0.00025753,6]
[327876363,1716573046262,-891.23,0.00025753,6]
[327876365,1716573046272,-500.0,0.00025753,6]
[327876367,1716573046281,-500.0,0.00025753,6]
[327876369,1716573046291,-500.0,0.00025753,6]
[327876371,1716573046300,-500.0,0.00025753,6]
[327876373,1716573046309,-500.0,0.00025753,6]
[327876375,1716573046319,-500.0,0.00025753,6]
[327876377,1716573046328,-500.0,0.00025753,6]
[327876379,1716573046338,-1415.81,0.00025753,6]
[327876381,1716573046347,-4831.14,0.00025753,6]
[327876383,1716573046357,-737.37,0.00025753,6]
[327876385,1716573046366,-500.0,0.00025753,6]
[327876387,1716573046376,-675.84,0.00025753,6]
[327876389,1716573046385,-500.0,0.00025753,6]
[327876391,1716573046395,-619.39,0.00025753,6]
[327876393,1716573046405,-696.11,0.00025753,6]
[327876395,1716573046419,-500.0,0.00025753,6]
[327876397,1716573046429,-1765.24,0.00025753,6]
[327876399,1716573046438,-500.0,0.00025753,6]
[327876401,1716573046447,-558.88,0.00025753,6]
[327876403,1716573046458,-532.28,0.00025753,6]
[327876405,1716573046467,-777.93,0.00025753,6]
[327876407,1716573046476,-500.0,0.00025753,6]
[327876409,1716573046485,-349.00048686,0.00025753,6]
[327876411,1716573046495,-617.46,0.00025753,6]
[327876413,1716573046505,-5617.02,0.00025753,6]
[327876415,1716573046514,-1118.82,0.00025753,6]
[327876417,1716573046524,-6010.23,0.00025753,6]
[327876419,1716573046533,-1742.08,0.00025753,6]
[327876421,1716573046542,-270.47027755,0.00025753,6]
[327876422,1716573046551,-500.0,0.00025753,6]
[327876424,1716573046560,-544.45,0.00025753,6]
[327876426,1716573046570,-500.0,0.00025753,6]
[327876429,1716573046579,-500.0,0.00025753,6]
[327876430,1716573046588,-500.0,0.00025753,6]
[327876432,1716573046599,-500.0,0.00025753,6]
[327876435,1716573046608,-500.0,0.00025753,6]
[327876437,1716573046618,-500.0,0.00025753,6]
[327876439,1716573046628,-500.0,0.00025753,6]
[327876441,1716573046637,-548.94,0.00025753,6]
[327876443,1716573046647,-529.82,0.00025753,6]
[327876444,1716573046656,-151.0,0.00025943,5]
[327876446,1716573046665,-8781.26,0.00025999,18]
[327876448,1716573046675,-11163.7035002,0.00026,2]
[327876449,1716573046684,-207.784917,0.00026,2]
[327876450,1716573046694,-8781.26,0.00026026,19]
[327876451,1716573046703,-500.0,0.00026026,3]
[327876452,1716573046712,-500.0,0.00026027,7]
[327876453,1716573046722,-619.7,0.00026027,7]
[327876454,1716573046732,-500.0,0.00026027,7]
[327876455,1716573046743,-500.0,0.00026027,7]
[327876456,1716573046752,-500.0,0.00026027,7]
[327876457,1716573046762,-157.898362,0.00026027,2]
[327876458,1716573046771,-500.0,0.00026027,7]
[327876459,1716573046780,-500.0,0.00026027,7]
[327876460,1716573046789,-500.0,0.00026027,7]
[327876461,1716573046799,-151.0,0.00026027,2]
[327876462,1716573046808,-151.0,0.00026027,2]
[327876463,1716573046817,-500.0,0.00026027,7]
[327876464,1716573046826,-500.0,0.00026027,7]
[327876465,1716573046835,-597.87,0.00026027,7]
[327876466,1716573046845,-500.0,0.00026027,7]
[327876467,1716573046854,-500.0,0.00026027,7]
[327876469,1716573046863,-754.5,0.00026027,7]
[327876471,1716573046873,-500.0,0.00026027,7]
[327876473,1716573046882,-500.0,0.00026027,7]
[327876474,1716573046892,-714.32,0.00026027,7]
[327876476,1716573046901,-500.0,0.00026027,7]
[327876477,1716573046910,-500.0,0.00026027,7]
[327876479,1716573046919,-500.0,0.00026027,7]
[327876481,1716573046930,-500.0,0.00026027,7]
[327876483,1716573046939,-675.81,0.00026027,7]
[327876484,1716573046948,-294.46086456,0.00026027,7]
[327876486,1716573046958,-500.0,0.00026027,7]
[327876488,1716573046967,-500.0,0.00026027,7]
[327876490,1716573046976,-845.77,0.00026027,7]
[327876492,1716573046985,-151.0,0.00026027,2]
[327876494,1716573046996,-151.0,0.00026027,2]
[327876495,1716573047005,-151.0,0.00026027,2]
[327876497,1716573047014,-500.0,0.00026027,7]
[327876499,1716573047023,-151.0,0.00026027,2]
[327876501,1716573047032,-151.0,0.00026027,2]
[327876503,1716573047041,-151.0,0.00026027,2]
[327876504,1716573047051,-151.0,0.00026027,2]
[327876506,1716573047060,-151.0,0.00026027,2]
[327876508,1716573047070,-587.45,0.00026027,7]
[327876509,1716573047080,-500.0,0.00026027,7]
[327876511,1716573047089,-3455.13,0.00026027,7]
[327876513,1716573047098,-554.51,0.00026027,7]
[327876514,1716573047107,-303.386439,0.00026027,2]
[327876516,1716573047116,-891.23,0.00026027,7]
[327876517,1716573047126,-303.386439,0.00026027,2]
[327876518,1716573047135,-500.0,0.00026027,7]
[327876519,1716573047144,-500.0,0.00026027,7]
[327876520,1716573047153,-500.0,0.00026027,7]
[327876521,1716573047163,-151.0,0.00026027,2]
[327876522,1716573047172,-151.0,0.00026027,2]
[327876523,1716573047182,-500.0,0.00026027,7]
[327876524,1716573047191,-500.0,0.00026027,7]
[327876525,1716573047200,-1415.81,0.00026027,7]
[327876526,1716573047210,-4831.14,0.00026027,7]
[327876527,1716573047219,-737.37,0.00026027,7]
[327876528,1716573047229,-500.0,0.00026027,7]
[327876529,1716573047239,-675.84,0.00026027,7]
[327876530,1716573047248,-500.0,0.00026027,7]
[327876531,1716573047258,-619.39,0.00026027,7]
[327876532,1716573047267,-245.085537,0.00026027,2]
[327876533,1716573047276,-696.11,0.00026027,7]
[327876534,1716573047285,-245.085537,0.00026027,2]
[327876535,1716573047295,-500.0,0.00026027,7]
[327876536,1716573047304,-1765.24,0.00026027,7]
[327876537,1716573047314,-500.0,0.00026027,7]
[327876538,1716573047323,-558.88,0.00026027,7]
[327876539,1716573047333,-532.28,0.00026027,7]
[327876540,1716573047343,-777.93,0.00026027,7]
[327876541,1716573047352,-500.0,0.00026027,7]
[327876542,1716573047361,-151.0,0.00026027,2]
[327876543,1716573047370,-151.0,0.00026027,2]
[327876544,1716573047379,-617.46,0.00026027,7]
[327876545,1716573047389,-5617.02,0.00026027,7]
[327876546,1716573047398,-751.740491,0.00026027,2]
[327876547,1716573047408,-1118.82,0.00026027,7]
[327876548,1716573047423,-751.740491,0.00026027,2]
[327876549,1716573047432,-151.0,0.00026027,2]
[327876550,1716573047442,-6010.23,0.00026027,7]
[327876551,1716573047452,-1742.08,0.00026027,7]
[327876552,1716573047463,-367.11,0.00026027,7]
[327876553,1716573047472,-544.45,0.00026027,7]
[327876554,1716573047482,-500.0,0.00026027,7]
[327876555,1716573047496,-500.0,0.00026027,7]
[327876556,1716573047506,-676.570388,0.00026027,2]
[327876557,1716573047515,-676.570388,0.00026027,2]
[327876558,1716573047525,-151.0,0.00026027,2]
[327876559,1716573047535,-367.27924875,0.00026027,7]
[327876560,1716573047544,-500.0,0.00026027,7]
[327876561,1716573047553,-500.0,0.00026027,7]
[327876562,1716573047563,-500.0,0.00026027,7]
[327876563,1716573047572,-548.94,0.00026027,7]
[327876564,1716573047583,-529.82,0.00026027,7]
[327876565,1716573047592,-286.6627749,0.00026062,2]
[327876566,1716573047603,-286.6627749,0.0002607,2]
[327876567,1716573047612,-188.192956,0.00026098,2]
[327876568,1716573047621,-188.192956,0.00026098,2]
[327876569,1716573047630,-625.168513,0.00026098,2]
[327876570,1716573047639,-625.168513,0.00026098,2]
[327876571,1716573047649,-1000.0,0.0002611,2]
[327876572,1716573047658,-1000.0,0.00026175,2]
[327876573,1716573047667,-1000.0,0.00026202,2]
[327876574,1716573047677,-1000.0,0.00026231,2]
[327876575,1716573047687,-150.81901718,0.00026251,2]
[327876576,1716573047696,-1000.0,0.00026272,2]
[327876577,1716573047706,-1000.0,0.00026284,2]
[327876578,1716573047715,-1000.0,0.00026291,2]
[327876579,1716573047726,-269.465102,0.000263,2]
[327876580,1716573047735,-269.465102,0.000263,2]
[327876581,1716573047747,-151.0,0.000263,2]
[327876582,1716573047757,-151.0,0.000263,2]
[327876583,1716573047766,-151.0,0.000263,2]